bitfinex/quotes_ETHUSD_20230119
["timestamp","ask_amount","ask_price","bid_price","bid_amount"]
[1674138920660,16.61502759,1527.5,1527.4,0.02407993]
[1674138920825,18.99716535,1527.5,1527.4,0.02407993]
[1674138921036,21.99716535,1527.5,1527.4,0.02407993]
[1674138922734,22.48826535,1527.5,1527.4,0.02407993]
[1674138924611,15.02928315,1527.5,1527.4,0.02407993]
[1674138924827,12.71314539,1527.5,1527.4,0.02407993]
[1674138925709,12.22204539,1527.5,1527.4,0.02407993]
[1674138925928,9.22204539,1527.5,1527.4,0.02407993]
[1674138926096,15.76868539,1527.5,1527.4,0.02407993]
[1674138926717,9.22204539,1527.5,1527.4,0.02407993]
[1674138929130,12.46813093,1527.5,1527.4,0.02407993]
[1674138931219,19.01477093,1527.5,1526.9,14.64911245]
[1674138931908,12.46813093,1527.5,1526.9,13.65503]
[1674138932120,12.46813093,1527.5,1526.9,15.412476]
[1674138932567,19.01477093,1527.5,1526.9,15.412476]
[1674138933633,6.61264,1527.5,1527.0,0.4913]
[1674138933850,0.066,1527.5,1527.0,0.4913]
[1674138933998,16.26715,1527.6,1527.1,14.09641]
[1674138934212,16.26715,1527.6,1527.1,13.16241]
[1674138934428,16.26715,1527.6,1527.2,1.316241]
[1674138934766,16.26715,1527.6,1527.2,7.864041]
[1674138934987,16.26715,1527.6,1527.2,7.930041]
[1674138935156,6.61235,1527.6,1527.2,7.930041]
[1674138935819,5.39947322,1527.6,1527.2,7.930041]
[1674138936034,26.10205602,1527.6,1527.2,0.066]
[1674138936255,26.10205602,1527.6,1527.1,6.61414]
[1674138938121,3.29174759,1527.5,1527.1,0.066]
[1674138938331,3.62092235,1527.4,1527.0,0.066]
[1674138938551,9.83924759,1527.3,1526.9,6.54921]
[1674138938778,9.83924759,1527.3,1526.9,6.61521]
[1674138938779,9.90524759,1527.3,1526.9,6.61521]
[1674138939014,10.48824759,1527.3,1526.9,7.61521]
[1674138939158,10.48824759,1527.3,1526.9,9.686611]
[1674138939159,7.1965,1527.3,1526.9,9.686611]
[1674138939558,7.1965,1527.3,1526.9,8.686611]
[1674138939805,7.1965,1527.3,1527.0,1.0]
[1674138940036,7.1965,1527.3,1526.9,15.235821]
[1674138940417,0.649,1527.3,1527.0,1.5235821]
[1674138940632,0.583,1527.3,1527.0,8.0723621]
[1674138940835,0.583,1527.3,1527.0,8.1383621]
[1674138941662,0.583,1527.3,1527.0,14.6871421]
[1674138941877,0.583,1527.3,1527.0,13.16356]
[1674138942876,0.583,1527.3,1527.0,6.61478]
[1674138943099,0.583,1527.3,1527.0,0.066]
[1674138943237,0.583,1527.3,1526.9,13.1642]
[1674138943446,8.504966,1527.3,1526.9,6.61499]
[1674138943656,8.570966,1527.3,1526.9,6.61499]
[1674138943911,15.118566,1527.3,1526.9,6.61499]
[1674138944315,3.29174759,1527.2,1526.9,0.066]
[1674138944535,17.90001419,1527.2,1526.7,22.13756788]
[1674138944765,14.6742666,1527.2,1526.8,2.13736167]
[1674138944976,6.61407,1527.2,1526.8,7.54961]
[1674138945130,0.066,1527.2,1526.9,20.78445678]
[1674138945342,0.583,1527.3,1527.0,3.21566202]
[1674138945562,0.583,1527.3,1527.1,6.54835]
[1674138945791,0.583,1527.3,1527.1,0.066]
[1674138945974,23.51728759,1527.3,1527.0,0.066]
[1674138946191,24.30289659,1527.3,1526.8,14.84969515]
[1674138946396,24.30289659,1527.3,1526.9,1.13730101]
[1674138947398,0.649,1527.3,1526.9,21.46978616]
[1674138947618,0.649,1527.3,1527.0,1.13730101]
[1674138947619,0.583,1527.3,1527.0,1.13730101]
[1674138947931,0.583,1527.3,1527.0,7.68587101]
[1674138948078,0.583,1527.3,1527.0,6.61457]
[1674138948534,0.583,1527.3,1527.0,13.16335]
[1674138948701,0.583,1527.3,1527.1,1.0]
[1674138948918,0.583,1527.3,1527.1,20.64464]
[1674138949160,0.583,1527.3,1527.1,20.71064]
[1674138949369,0.583,1527.3,1527.2,1.13712594]
[1674138949596,0.583,1527.3,1527.2,14.23298594]
[1674138949806,0.583,1527.3,1527.2,23.10010305]
[1674138950141,0.583,1527.3,1527.2,23.7849782]
[1674138950442,0.583,1527.3,1527.2,23.10010305]
[1674138950765,0.066,1527.7,1527.3,1.44442516]
[1674138950984,15.47309,1527.9,1527.4,21.46620413]
[1674138951278,8.9279,1527.9,1527.5,1.1369007]
[1674138951488,8.9279,1527.9,1527.5,15.35974048]
[1674138951706,8.9279,1527.9,1527.5,15.42574048]
[1674138952067,0.066,1527.9,1527.5,21.97238048]
[1674138952329,9.8039,1528.0,1527.5,21.97238048]
[1674138952505,9.8039,1528.0,1527.6,15.28927805]
[1674138952717,9.8039,1528.0,1527.7,1.0]
[1674138952914,0.066,1528.0,1527.6,21.90144805]
[1674138953124,15.50429,1528.1,1527.6,21.90144805]
[1674138953454,18.79603759,1528.1,1527.6,21.90144805]
[1674138954645,18.30513759,1528.1,1527.7,8.73583481]
[1674138954851,18.30513759,1528.1,1527.7,8.80183481]
[1674138955216,0.066,1528.1,1527.7,8.80183481]
[1674138955426,10.75747554,1528.2,1527.7,8.80183481]
[1674138955427,10.1424,1528.2,1527.7,21.89339481]
[1674138955635,10.1424,1528.2,1527.8,3.18933948]
[1674138955905,0.066,1528.2,1527.8,16.27987948]
[1674138956060,9.13714543,1528.3,1527.9,1.0]
[1674138956267,0.24314543,1528.3,1527.9,7.54482]
[1674138956532,0.17714543,1528.3,1527.9,9.99988995]
[1674138956751,0.17714543,1528.3,1527.9,8.99988995]
[1674138958282,0.85822097,1528.3,1527.9,8.99988995]
[1674138958530,3.97282313,1528.2,1527.9,0.066]
[1674138958766,3.29174759,1528.1,1527.9,0.002]
[1674138959056,3.29174759,1528.1,1527.6,6.61187]
[1674138959057,0.32917476,1528.0,1527.6,6.61187]
[1674138959423,3.29174759,1527.9,1527.6,0.066]
[1674138959679,16.38193759,1527.9,1527.5,0.066]
[1674138960000,1.63819376,1527.8,1527.3,14.02175516]
[1674138961182,18.02085135,1527.8,1527.3,7.47451516]
[1674138961352,3.78284759,1527.7,1527.3,0.92742516]
[1674138961550,18.67693273,1527.7,1527.3,0.86142516]
[1674138961758,1.0,1527.6,1527.3,0.86142516]
[1674138962123,6.54628,1527.6,1527.3,0.86142516]
[1674138962351,3.29174759,1527.5,1527.3,0.86142516]
[1674138962668,1.0,1527.4,1527.3,0.86142516]
[1674138962803,7.54707,1527.4,1527.3,0.86142516]
[1674138963013,7.61307,1527.4,1527.3,0.86142516]
[1674138963275,6.61307,1527.4,1527.3,0.86142516]
[1674138963480,8.96202976,1527.4,1527.3,0.86142516]
[1674138963816,6.61307,1527.4,1527.3,0.86142516]
[1674138963983,0.066,1527.4,1527.3,0.86142516]
[1674138964174,16.94252759,1527.5,1527.3,0.86142516]
[1674138965687,10.39568759,1527.5,1527.3,0.86142516]
[1674138965873,9.35103689,1527.5,1527.3,0.86142516]
[1674138966081,7.10394,1527.5,1527.3,0.86142516]
[1674138966654,0.5571,1527.5,1527.3,0.86142516]
[1674138966814,0.4911,1527.5,1527.3,0.86142516]
[1674138967008,9.14128127,1527.6,1527.3,0.86142516]
[1674138967009,3.08602127,1527.6,1527.3,0.86142516]
[1674138967218,3.02002127,1527.6,1527.3,0.86142516]
[1674138967423,1.30200213,1527.5,1527.3,0.86142516]
[1674138967699,3.29174759,1527.4,1527.3,0.86142516]
[1674138969560,10.06881759,1527.4,1527.3,0.86142516]
[1674138969778,1.0,1527.3,1526.9,0.066]
[1674138969999,16.48760759,1527.2,1526.7,0.03112435]
[1674138970208,3.52174759,1527.1,1526.7,0.03112435]
[1674138970420,3.29174759,1527.0,1526.7,0.03112435]
[1674138972435,3.29174759,1526.9,1526.7,0.03112435]
[1674138974527,3.29174759,1526.8,1526.7,0.03112435]
[1674138974677,4.76715235,1526.8,1526.7,0.03112435]
[1674138974887,4.27585235,1526.8,1526.7,0.03112435]
[1674138975892,17.37513235,1526.8,1526.7,0.03112435]
[1674138976059,21.16243235,1526.8,1526.7,0.03112435]
[1674138978684,14.38279235,1526.8,1526.7,0.03112435]
[1674138979461,14.63279235,1526.8,1526.7,0.03112435]
[1674138980407,21.18243235,1526.8,1526.7,0.03112435]
[1674138980565,22.54143235,1526.8,1526.7,0.03112435]
[1674138981260,21.18243235,1526.8,1526.7,0.03112435]
[1674138981624,21.41243235,1526.8,1526.7,0.03112435]
[1674138982707,5.08315235,1526.8,1526.7,0.03112435]
[1674138983031,4.59185235,1526.8,1526.7,0.03112435]
[1674138983202,4.52585235,1526.8,1526.7,0.03112435]
[1674138984404,3.54374759,1526.8,1526.7,0.03112435]
[1674138984557,3.54174759,1526.8,1526.7,0.03112435]
[1674138984923,0.25,1526.8,1526.7,0.03112435]
[1674138985112,9.5535,1526.9,1526.8,1.91344787]
[1674138985325,0.066,1526.9,1526.8,1.91344787]
[1674138985495,15.09511,1527.1,1526.8,1.91344787]
[1674138985496,6.61451,1527.1,1526.8,2.10790509]
[1674138985705,0.066,1527.1,1526.8,1.91344787]
[1674138985934,0.066,1527.2,1526.8,15.01272787]
[1674138986182,0.066,1527.3,1526.9,1.8613]
[1674138986392,30.27,1527.5,1527.1,13.0967]
[1674138986393,0.066,1527.5,1527.1,13.0967]
[1674138986553,10.56689554,1527.6,1527.1,13.1627]
[1674138986760,17.07917968,1527.6,1527.1,16.288136]
[1674138987028,17.07917968,1527.6,1527.1,15.288136]
[1674138987202,13.36754313,1527.6,1527.1,15.288136]
[1674138988543,3.29174759,1527.5,1527.1,0.066]
[1674138988880,3.29174759,1527.5,1527.0,14.52006]
[1674138989092,3.29174759,1527.5,1527.1,1.0]
[1674138989510,9.83840759,1527.5,1527.1,1.0]
[1674138989719,0.066,1527.5,1527.1,15.648596]
[1674138989928,0.23239554,1527.6,1527.1,17.072596]
[1674138990170,0.16639554,1527.6,1527.2,1.368]
[1674138990389,0.16639554,1527.6,1527.3,2.5018]
[1674138990603,0.16639554,1527.6,1527.3,9.04904]
[1674138990773,0.16639554,1527.6,1527.5,1.358]
[1674138991122,0.16639554,1527.6,1527.5,14.45128]
[1674138991389,0.16639554,1527.6,1527.5,14.51728]
[1674138991556,0.16639554,1527.6,1527.5,16.672802]
[1674138992661,9.554e-05,1527.6,1527.5,16.672802]
[1674138992792,9.554e-05,1527.6,1527.5,18.80656115]
[1674138993007,9.554e-05,1527.6,1527.5,20.66766115]
[1674138993674,9.554e-05,1527.6,1527.5,17.163902]
[1674138994687,9.554e-05,1527.6,1527.5,15.805902]
[1674138994915,1.0,1528.1,1527.5,15.805902]
[1674138994916,1.0,1528.1,1527.5,9.259262]
[1674138995094,3.78274759,1528.0,1527.5,0.066]
[1674138995457,1.0,1527.9,1527.4,7.10394]
[1674138995777,1.0,1527.9,1527.4,0.066]
[1674138995778,11.31496235,1527.9,1527.4,0.066]
[1674138995941,10.38096235,1527.9,1527.3,15.9327]
[1674138997035,10.38096235,1527.9,1527.4,1.0]
[1674138997207,1.03809624,1527.8,1527.3,15.9327]
[1674138997606,1.03809624,1527.8,1527.4,1.0]
[1674138998092,1.03809624,1527.8,1527.3,6.6133]
[1674138998240,1.03809624,1527.8,1527.4,1.0]
[1674138998718,10.87521383,1527.8,1527.3,6.6133]
[1674138998990,10.94121383,1527.8,1527.4,1.0]
[1674138999166,3.35774759,1527.8,1527.4,1.0]
[1674138999386,3.29174759,1527.8,1527.4,1.0]
[1674139000088,16.63224,1527.9,1527.4,2.37]
[1674139000089,6.61094,1527.9,1527.4,2.37]
[1674139000268,3.35774759,1527.9,1527.4,15.46405]
[1674139000478,3.29174759,1527.9,1527.5,1.546405]
[1674139000683,3.29174759,1527.9,1527.5,2.916405]
[1674139000950,0.066,1528.0,1527.7,1.369]
[1674139001126,6.60966,1528.2,1527.7,1.369]
[1674139001482,10.58248313,1528.2,1527.6,13.4495005]
[1674139001645,0.660966,1528.1,1527.6,13.4495005]
[1674139003449,10.49685359,1528.1,1527.6,6.61193]
[1674139003664,10.56285359,1528.1,1527.6,6.61193]
[1674139004148,7.78274759,1528.0,1527.6,0.066]
[1674139004362,11.19575759,1527.9,1527.4,0.066]
[1674139004586,3.29174759,1527.8,1527.3,24.3309]
[1674139004799,3.29174759,1527.8,1527.3,6.6131]
[1674139005242,3.29174759,1527.8,1527.3,7.6131]
[1674139006174,3.29174759,1527.8,1527.4,1.0]
[1674139006357,5.97774182,1527.8,1527.3,7.6131]
[1674139006574,12.58917182,1527.8,1527.3,7.6131]
[1674139006992,3.29174759,1527.7,1527.3,6.6131]
[1674139007207,9.29742423,1527.8,1527.3,0.066]
[1674139007208,3.29174759,1527.6,1527.3,0.066]
[1674139007417,9.83796759,1527.6,1527.2,6.61366]
[1674139007759,9.83796759,1527.6,1527.2,7.61366]
[1674139007760,9.90396759,1527.6,1527.2,7.61366]
[1674139007965,11.64192859,1527.6,1527.2,6.61366]
[1674139008525,3.29174759,1527.5,1527.2,0.066]
[1674139008718,3.29174759,1527.5,1527.1,6.61394]
[1674139009345,3.29174759,1527.4,1527.1,0.066]
[1674139009685,3.29174759,1527.4,1527.0,6.54862]
[1674139009686,3.78294759,1527.3,1527.0,0.066]
[1674139009837,3.78294759,1527.3,1526.8,7.52883787]
[1674139009838,10.33068759,1527.3,1526.8,7.52883787]
[1674139010203,3.29174759,1527.2,1526.8,0.97944787]
[1674139010396,3.29174759,1527.2,1526.8,1.91344787]
[1674139010729,3.29174759,1527.2,1526.8,1.86344787]
[1674139011130,3.29174759,1527.2,1526.8,0.86344787]
[1674139011463,11.78598197,1527.2,1526.8,0.86344787]
[1674139011625,11.85198197,1527.2,1526.8,0.86344787]
[1674139014515,11.85198197,1527.2,1526.8,1.86344787]
[1674139014892,11.85198197,1527.2,1526.8,1.81344787]
[1674139015099,11.85198197,1527.2,1526.8,0.81344787]
[1674139015295,1.1851982,1527.1,1526.8,0.81344787]
[1674139015510,4.47694579,1527.1,1526.8,0.81344787]
[1674139017890,4.47694579,1527.1,1526.7,6.64700435]
[1674139020852,4.42694579,1527.1,1526.7,6.64700435]
[1674139021469,4.92014579,1527.1,1526.7,6.64500435]
[1674139021692,4.91814579,1527.1,1526.7,6.64700435]
[1674139022047,4.91814579,1527.1,1526.7,7.64700435]
[1674139022255,3.78294759,1527.1,1526.7,16.27636137]
[1674139022575,3.29174759,1527.0,1526.7,13.19707435]
[1674139022744,10.84065759,1527.0,1526.7,0.09712435]
[1674139022950,9.90665759,1527.0,1526.7,0.03112435]
[1674139023309,12.35612435,1527.0,1526.7,0.03112435]
[1674139025624,18.90503435,1527.0,1526.7,0.03112435]
[1674139025818,3.29174759,1526.9,1526.7,0.03112435]
[1674139026164,7.04094,1526.8,1526.7,0.03112435]
[1674139026297,8.79514776,1526.8,1526.7,0.03112435]
[1674139026503,8.30384776,1526.8,1526.7,0.03112435]
[1674139026766,0.066,1526.8,1526.7,0.03112435]
[1674139026978,0.5573,1526.9,1526.7,0.03112435]
[1674139027139,3.4913,1526.9,1526.7,0.03112435]
[1674139028351,0.4913,1526.9,1526.7,0.03112435]
[1674139028875,0.4913,1526.9,1526.7,14.45553437]
[1674139029090,0.5573,1527.0,1526.7,14.52153437]
[1674139029403,0.4413,1527.0,1526.8,1.0]
[1674139029554,0.4912,1527.1,1526.8,7.54954]
[1674139029765,0.4912,1527.1,1526.8,7.61554]
[1674139030093,0.4912,1527.1,1526.8,6.61554]
[1674139030468,19.45264103,1527.1,1526.8,0.066]
[1674139030666,19.51864103,1527.1,1526.7,6.64712435]
[1674139031187,9.84077759,1527.0,1526.7,0.09712435]
[1674139031374,9.90677759,1527.0,1526.7,0.03112435]
[1674139031591,11.85870669,1527.0,1526.7,0.03112435]
[1674139032194,3.29174759,1526.9,1526.7,0.03112435]
[1674139032600,3.29174759,1526.8,1526.7,0.03112435]
[1674139032816,9.84138759,1526.8,1526.7,0.03112435]
[1674139033025,24.18303635,1526.8,1526.7,0.03112435]
[1674139033253,28.78303635,1526.8,1526.7,0.03112435]
[1674139033447,29.27433635,1526.8,1526.7,0.03112435]
[1674139034859,29.27433635,1526.8,1526.6,0.0266502]
[1674139035073,8.37214759,1526.7,1526.6,0.0266502]
[1674139035248,31.33770122,1526.7,1526.6,0.0266502]
[1674139036032,29.97870122,1526.7,1526.6,0.0266502]
[1674139036487,16.64856122,1526.7,1526.6,0.0266502]
[1674139036698,0.5574,1526.7,1526.6,0.0266502]
[1674139036925,0.4914,1526.7,1526.6,0.0266502]
[1674139037984,23.43335759,1526.7,1526.6,0.0266502]
[1674139038196,23.49935759,1526.7,1526.6,0.0266502]
[1674139040550,26.49935759,1526.7,1526.6,0.0266502]
[1674139040744,30.54249423,1526.7,1526.6,0.0266502]
[1674139041212,27.54249423,1526.7,1526.6,0.0266502]
[1674139041358,3.35774759,1526.7,1526.6,1.2726502]
[1674139041568,16.36564,1526.8,1526.6,1.2726502]
[1674139041779,19.65738759,1526.8,1526.6,0.0266502]
[1674139042666,13.10774759,1526.8,1526.6,0.0266502]
[1674139042887,0.066,1526.8,1526.6,0.0266502]
[1674139043203,13.09902,1526.9,1526.6,0.0266502]
[1674139043204,13.16502,1526.9,1526.6,0.0266502]
[1674139043412,0.066,1526.9,1526.6,1.45203023]
[1674139043570,0.066,1527.0,1526.7,1.37]
[1674139043782,0.5572,1527.2,1526.9,2.514]
[1674139044020,16.8714,1527.3,1526.9,7.86121]
[1674139044288,16.8714,1527.3,1526.9,7.92721]
[1674139044289,24.02692259,1527.3,1526.9,7.92721]
[1674139044426,14.26042259,1527.3,1526.9,7.92721]
[1674139046150,3.35774759,1527.3,1526.9,14.47642]
[1674139046307,3.29174759,1527.3,1526.9,14.47642]
[1674139046844,3.29174759,1527.3,1527.0,1.0]
[1674139047720,3.29174759,1527.3,1526.9,19.77963]
[1674139047941,3.29174759,1527.3,1526.9,21.908293]
[1674139048087,3.29174759,1527.3,1526.9,19.77963]
[1674139048712,3.29174759,1527.3,1527.0,1.0]
[1674139049381,22.32345,1527.4,1527.0,1.0]
[1674139049382,15.28497,1527.4,1527.0,1.0]
[1674139049595,18.57671759,1527.4,1527.0,7.54873]
[1674139049810,18.57671759,1527.4,1527.1,0.754873]
[1674139049999,9.90501759,1527.4,1527.1,0.754873]
[1674139050605,0.066,1527.4,1527.2,1.0]
[1674139050821,0.20888485,1527.5,1527.2,9.7481773]
[1674139051078,0.14288485,1527.5,1527.2,9.8141773]
[1674139051712,0.14288485,1527.5,1527.4,1.37]
[1674139051948,0.14288485,1527.5,1527.4,25.01163123]
[1674139051949,8.485e-05,1527.5,1527.4,25.01163123]
[1674139052248,0.15418436,1527.9,1527.5,1.0]
[1674139052414,0.15418436,1527.9,1527.7,21.00734]
[1674139052623,0.15418436,1527.9,1527.7,21.07334]
[1674139052873,0.15418436,1527.9,1527.7,7.98178]
[1674139053030,0.15418436,1527.9,1527.7,9.216958]
[1674139053237,0.15418436,1527.9,1527.7,7.846958]
[1674139053657,0.15418436,1527.9,1527.7,0.066]
[1674139053931,0.15418436,1527.9,1527.6,6.61209]
[1674139055650,0.15418436,1527.9,1527.6,7.61209]
[1674139055836,0.15418436,1527.9,1527.6,6.61209]
[1674139056223,0.00256399,1527.8,1527.6,7.61209]
[1674139056413,0.00256399,1527.8,1527.6,6.61209]
[1674139056816,0.00256399,1527.8,1527.6,0.066]
[1674139057088,0.00256399,1527.8,1527.5,0.066]
[1674139057279,0.00256399,1527.8,1527.4,16.29407]
[1674139057759,0.00256399,1527.8,1527.4,6.61307]
[1674139058230,0.00256399,1527.8,1527.4,7.61307]
[1674139059180,0.00256399,1527.8,1527.5,1.0]
[1674139059876,0.00256399,1527.8,1527.5,2.65298]
[1674139060279,0.00256399,1527.8,1527.5,9.19954]
[1674139060489,0.00256399,1527.8,1527.5,9.26554]
[1674139060758,0.00256399,1527.8,1527.5,17.18218]
[1674139065114,0.00256399,1527.8,1527.5,13.1592]
[1674139065324,0.00256399,1527.8,1527.5,6.61256]
[1674139065899,0.00256399,1527.8,1527.5,0.066]
[1674139066114,0.00256399,1527.8,1527.4,19.70637]
[1674139066543,0.00256399,1527.8,1527.5,1.0]
[1674139066713,0.67933583,1527.8,1527.4,19.70637]
[1674139067426,3.29174759,1527.7,1527.4,0.066]
[1674139067758,3.29174759,1527.7,1527.3,6.61337]
[1674139067969,0.32917476,1527.6,1527.3,6.61337]
[1674139068190,0.33173875,1527.6,1527.3,6.61337]
[1674139068546,0.33173875,1527.6,1527.3,7.61337]
[1674139068770,0.00256399,1527.6,1527.3,7.61337]
[1674139068934,0.00256399,1527.6,1527.3,14.16087]
[1674139069292,0.00256399,1527.6,1527.3,20.70837]
[1674139069444,0.00256399,1527.6,1527.5,6.54664]
[1674139069656,0.00256399,1527.6,1527.5,6.61264]
[1674139070343,0.00256399,1527.6,1527.5,7.61264]
[1674139070504,0.00256399,1527.6,1527.5,14.15928]
[1674139071181,0.00256399,1527.8,1527.5,14.15928]
[1674139071393,1.06898243,1527.8,1527.6,1.0]
[1674139071539,0.00256399,1527.8,1527.6,1.0]
[1674139071751,0.00256399,1527.8,1527.6,7.54619]
[1674139071959,0.00256399,1527.8,1527.6,7.61219]
[1674139072229,0.00256399,1527.8,1527.6,6.61219]
[1674139072819,0.64518436,1527.9,1527.6,6.61219]
[1674139072820,0.54774835,1527.9,1527.6,7.61219]
[1674139073050,3.11070219,1527.9,1527.6,6.61219]
[1674139075243,0.05674835,1527.9,1527.6,13.1584]
[1674139075810,0.05674835,1527.9,1527.7,1.0]
[1674139076520,0.05674835,1527.9,1527.6,19.70461]
[1674139077786,6.56739835,1528.0,1527.6,19.70461]
[1674139077998,0.661065,1527.9,1527.6,19.70461]
[1674139078215,9.85914594,1528.0,1527.6,19.70461]
[1674139078417,9.85914594,1528.0,1527.7,1.0]
[1674139078596,9.85914594,1528.0,1527.6,19.70461]
[1674139079345,9.85914594,1528.0,1527.7,1.0]
[1674139079561,9.85914594,1528.0,1527.7,6.54578]
[1674139079785,9.85914594,1528.0,1527.7,7.61178]
[1674139080274,12.58721457,1528.0,1527.7,6.61178]
[1674139080655,12.58721457,1528.0,1527.7,7.61178]
[1674139081027,12.58721457,1528.0,1527.7,6.61178]
[1674139082049,12.48721457,1528.0,1527.7,6.61178]
[1674139082205,13.16829011,1528.0,1527.7,6.61178]
[1674139082368,4.6085766,1527.9,1527.7,0.066]
[1674139082584,11.83459214,1527.9,1527.6,0.066]
[1674139082963,19.46741545,1527.9,1527.5,7.61244]
[1674139083109,11.90059214,1527.9,1527.5,7.61244]
[1674139083445,12.92220545,1527.9,1527.5,13.15908]
[1674139083861,5.26504367,1527.8,1527.5,13.15908]
[1674139084078,18.42209367,1527.8,1527.5,0.066]
[1674139084393,18.42209367,1527.8,1527.4,6.61269]
[1674139084810,18.42209367,1527.8,1527.4,7.61269]
[1674139085020,19.44370698,1527.8,1527.4,7.61269]
[1674139085368,0.74707554,1527.8,1527.5,14.09275]
[1674139085694,7.78301554,1527.9,1527.5,14.15875]
[1674139086002,11.07476313,1527.9,1527.5,14.15875]
[1674139086217,15.30838312,1527.9,1527.5,13.15875]
[1674139086738,0.68107554,1527.8,1527.5,13.15875]
[1674139088208,0.68107554,1527.8,1527.6,1.0]
[1674139088573,15.30838312,1527.9,1527.6,1.0]
[1674139089012,0.68107554,1527.8,1527.5,19.70526]
[1674139089222,0.68107554,1527.7,1527.5,19.70526]
[1674139089833,0.68107554,1527.7,1527.6,1.0]
[1674139090176,0.68107554,1527.8,1527.6,1.0]
[1674139090360,0.68107554,1527.8,1527.5,19.70526]
[1674139090571,0.68107554,1527.7,1527.5,13.15875]
[1674139092479,1.70268885,1527.7,1527.5,6.61224]
[1674139092847,2.66244407,1527.7,1527.5,0.066]
[1674139093015,0.68107554,1527.6,1527.4,6.61287]
[1674139093434,2.66244407,1527.7,1527.4,6.61287]
[1674139093682,1.70268885,1527.7,1527.4,7.61287]
[1674139094168,0.68107554,1527.6,1527.4,6.61287]
[1674139097272,0.68107554,1527.5,1527.4,0.066]
[1674139097482,0.68107554,1527.5,1527.3,6.61324]
[1674139097856,6.02683866,1527.6,1527.3,7.61324]
[1674139098067,5.00522535,1527.6,1527.3,6.61324]
[1674139098278,12.57313866,1527.6,1527.3,6.61324]
[1674139099030,12.57313866,1527.6,1527.3,7.61324]
[1674139099611,1.76868885,1527.6,1527.3,7.61324]
[1674139099737,0.68107554,1527.6,1527.3,20.70824]
[1674139100112,0.68107554,1527.6,1527.4,1.0]
[1674139100435,0.68107554,1527.6,1527.4,13.09381]
[1674139100580,1.70268885,1527.7,1527.4,13.15981]
[1674139100789,1.70268885,1527.7,1527.5,1.0]
[1674139101291,0.68107554,1527.7,1527.5,14.09323]
[1674139101580,0.68107554,1527.7,1527.5,14.15923]
[1674139101801,10.33767554,1527.8,1527.5,16.22983]
[1674139101945,0.74707554,1527.8,1527.5,22.77647]
[1674139102155,0.68107554,1527.8,1527.5,22.77342024]
[1674139103735,10.24368885,1527.9,1527.5,24.13942024]
[1674139103944,0.066,1527.9,1527.6,3.78394202]
[1674139104198,0.68107554,1527.9,1527.7,14.09156]
[1674139104529,0.68107554,1527.9,1527.7,13.15756]
[1674139104675,1.70268885,1527.9,1527.7,13.15756]
[1674139104886,0.68107554,1527.8,1527.7,13.15756]
[1674139105352,1.70268885,1527.9,1527.7,6.61178]
[1674139105525,0.68107554,1527.8,1527.7,6.61178]
[1674139105745,0.68107554,1527.8,1527.7,0.066]
[1674139105973,0.68107554,1527.8,1527.6,7.61199]
[1674139106167,0.68107554,1527.8,1527.6,6.61199]
[1674139106620,0.68107554,1527.8,1527.6,7.61199]
[1674139107044,0.68107554,1527.8,1527.6,6.61199]
[1674139107410,0.68107554,1527.8,1527.6,7.61199]
[1674139107887,0.68107554,1527.8,1527.6,6.61199]
[1674139108807,0.68107554,1527.7,1527.6,6.61199]
[1674139109938,1.70268885,1527.8,1527.6,6.61199]
[1674139110149,3.02935525,1527.8,1527.6,6.61199]
[1674139110354,0.68107554,1527.7,1527.6,6.61199]
[1674139111407,0.68107554,1527.7,1527.6,0.066]
[1674139111759,0.68107554,1527.7,1527.5,6.61243]
[1674139111930,1.70268885,1527.7,1527.5,6.61243]
[1674139112139,2.66903907,1527.7,1527.5,0.066]
[1674139112349,2.66903907,1527.7,1527.4,13.15956]
[1674139112350,0.68107554,1527.6,1527.4,13.15956]
[1674139112607,0.68107554,1527.6,1527.4,6.61271]
[1674139112815,3.97282313,1527.6,1527.4,0.066]
[1674139113036,0.39728231,1527.5,1527.3,6.61343]
[1674139113356,4.37010544,1527.5,1527.3,0.066]
[1674139113530,0.68107554,1527.4,1527.2,6.61153]
[1674139113712,0.68107554,1527.4,1527.2,0.066]
[1674139113713,4.40983367,1527.4,1527.2,0.066]
[1674139113924,4.40983367,1527.4,1527.1,6.54834]
[1674139113925,3.72875813,1527.4,1527.1,7.61434]
[1674139114194,10.27585813,1527.4,1527.1,6.61434]
[1674139114361,0.066,1527.4,1527.1,19.71104]
[1674139114571,16.72094554,1527.6,1527.1,19.71104]
[1674139114805,12.78534759,1527.6,1527.2,1.13718398]
[1674139115021,12.78534759,1527.6,1527.3,7.54725]
[1674139115203,3.84884759,1527.6,1527.3,14.16075]
[1674139115425,0.4911,1527.6,1527.3,24.285077]
[1674139115661,1.17217554,1527.7,1527.3,24.285077]
[1674139115868,0.68107554,1527.7,1527.3,24.285077]
[1674139116189,20.75998885,1527.8,1527.3,27.785077]
[1674139116401,0.066,1527.8,1527.6,1.366]
[1674139116554,0.68107554,1527.9,1527.7,6.54578]
[1674139116928,0.68107554,1527.9,1527.7,6.61178]
[1674139117290,2.19368885,1528.0,1527.7,13.15756]
[1674139117639,1.70268885,1528.0,1527.7,13.15756]
[1674139118059,1.70268885,1528.0,1527.8,1.0]
[1674139118270,0.68107554,1528.0,1527.8,14.09024]
[1674139118506,0.68107554,1528.0,1527.8,22.06259]
[1674139119346,1.70268885,1528.0,1527.8,21.06259]
[1674139119564,1.70268885,1528.0,1527.8,22.0185432]
[1674139119902,0.68107554,1528.0,1527.8,23.5545432]
[1674139120046,0.14288485,1528.1,1527.8,23.5545432]
[1674139120257,0.14488485,1528.1,1528.0,13.089]
[1674139120484,0.14288485,1528.1,1528.0,13.155]
[1674139120695,0.14288485,1528.1,1528.0,16.89952043]
[1674139122676,0.09288485,1528.1,1528.0,16.89952043]
[1674139122925,0.09288485,1528.1,1528.0,16.84952043]
[1674139124305,0.09005128,1528.1,1528.0,16.84952043]
[1674139127509,0.09005128,1528.1,1528.0,16.66652043]
[1674139130712,0.09005128,1528.1,1528.0,23.21102043]
[1674139132023,0.17714543,1528.3,1528.1,0.08999999]
[1674139132243,4.543e-05,1528.3,1528.2,4.80907037]
[1674139132628,4.543e-05,1528.3,1528.2,30.98363037]